[Event "HUN-ch Rapid 2019"]
[Site "Ajka"]
[Date "2019.07.20"]
[Round "6.17"]
[White "Emodi, Barnabas"]
[Black "Pasztor, Balazs"]
[Result "1-0"]
[ECO "D26"]
[WhiteElo "2365"]
[BlackElo "1601"]
[Annotator "NA"]
[PlyCount "79"]
[EventDate "2019.07.18"]
[EventType "swiss"]
[EventCountry "HUN"]
[SourceTitle "playchess.com"]
[Source "ChessBase"]
[SourceQuality "1"]
[TimeControl "1200+5"]

1. d4 {[%emt 0:00:01]} d5 {[%emt 0:00:02]} 2. Nf3 {[%emt 0:00:02]} Nf6 {[%emt 0:00:02]} 3. c4 {[%emt 0:00:01]} dxc4 {[%emt 0:00:03]} 4. e3 {[%emt 0:00:04]} e6 {[%emt 0:00:03]} 5. Bxc4 {[%emt 0:00:02]} a6 {[%emt 0:00:02]} 6. a4 {[%emt 0:00:09]} c5 {[%emt 0:00:04]} 7. O-O {[%emt 0:00:02]} Nc6 {[%emt 0:00:03]} 8. Nc3 {[%emt 0:00:03]} Bd6 {[%emt 0:00:31]} 9. Qe2 {[%emt 0:00:28]} O-O {[%emt 0:00:51]} 10. Rd1 {[%emt 0:00:07]} Qc7 {[%emt 0:00:12]} 11. h3 {[%emt 0:00:26]} b6 {[%emt 0:00:18]} 12. d5 {[%emt 0:00:16]} exd5 {[%emt 0:00:06]} 13. Bxd5 {[%emt 0:00:02]} Bb7 {[%emt 0:00:54]} 14. e4 {[%emt 0:00:37]} Rfe8 {[%emt 0:02:51]} 15. Bg5 {[%emt 0:02:27]} Nd4 {[%emt 0:01:56]} 16. Nxd4 {[%emt 0:04:25]} Nxd5 {[%emt 0:00:17]} 17. Ndb5 {[%emt 0:02:18]} axb5 {[%emt 0:03:11]} 18. Nxd5 {[%emt 0:00:07]} Bxd5 {[%emt 0:00:37]} 19. Rxd5 {[%emt 0:00:01]} Rxa4 {[%emt 0:01:14]} 20. Rxa4 {[%emt 0:01:09]} bxa4 {[%emt 0:00:02]} 21. Qd1 {[%emt 0:00:14]} Re6 {[%emt 0:02:03]} 22. Qxa4 {[%emt 0:00:29]} h6 {[%emt 0:00:11]} 23. Bd2 {[%emt 0:00:46]} Be5 {[%emt 0:00:56]} 24. Qc2 {[%emt 0:00:54]} Qe7 {[%emt 0:00:31]} 25. Be3 {[%emt 0:00:11]} Rd6 {[%emt 0:00:45]} 26. b3 {[%emt 0:00:50]} Rxd5 {[%emt 0:00:14]} 27. exd5 {[%emt 0:00:02]} Qf6 {[%emt 0:00:30]} 28. Qe4 {[%emt 0:00:11]} Qd6 {[%emt 0:00:38]} 29. f4 {[%emt 0:00:12]} Bf6 {[%emt 0:00:06]} 30. Qe8+ {[%emt 0:00:20]} Qf8 {[%emt 0:00:19]} 31. Qc6 {[%emt 0:00:42]} Qe7 {[%emt 0:00:23]} 32. Kf2 {[%emt 0:00:42]} Bd4 {[%emt 0:00:27]} 33. Qc8+ {[%emt 0:00:16]} Kh7 {[%emt 0:00:12]} 34. Bxd4 {[%emt 0:00:04]} cxd4 {[%emt 0:00:07]} 35. Qf5+ {[%emt 0:00:13]} g6 {[%emt 0:00:15]} 36. Qe5 {[%emt 0:00:02]} Qc5 {[%emt 0:00:34]} 37. d6 {[%emt 0:00:10]} Qc2+ {[%emt 0:00:02]} 38. Kg3 {[%emt 0:00:12]} Qxb3+ {[%emt 0:00:25]} 39. Kh2 {[%emt 0:00:13]} Qa4 {[%emt 0:01:01]} 40. Qe7 1-0

[Event "HUN-ch Rapid 2019"]
[Site "Ajka"]
[Date "2019.07.20"]
[Round "6.18"]
[White "Bohus, Adam"]
[Black "Farago, Sandor"]
[Result "1-0"]
[ECO "E80"]
[WhiteElo "2219"]
[BlackElo "2210"]
[Annotator "NA"]
[PlyCount "95"]
[EventDate "2019.07.18"]
[EventType "swiss"]
[EventCountry "HUN"]
[SourceTitle "playchess.com"]
[Source "ChessBase"]
[SourceQuality "1"]
[TimeControl "1200+5"]

1. d4 {[%emt 0:00:03]} Nf6 {[%emt 0:00:01]} 2. c4 {[%emt 0:00:02]} g6 {[%emt 0:00:02]} 3. f3 {[%emt 0:00:03]} Bg7 {[%emt 0:00:04]} 4. e4 {[%emt 0:00:02]} d6 {[%emt 0:00:01]} 5. Nc3 {[%emt 0:00:03]} Nbd7 {[%emt 0:00:01]} 6. Be3 {[%emt 0:00:13]} e5 {[%emt 0:00:03]} 7. Nge2 {[%emt 0:00:04]} c6 {[%emt 0:00:22]} 8. Qd2 {[%emt 0:00:04]} h5 {[%emt 0:00:08]} 9. d5 {[%emt 0:01:20]} c5 {[%emt 0:00:15]} 10. Nc1 {[%emt 0:01:04]} a6 {[%emt 0:00:04]} 11. Be2 {[%emt 0:01:10]} Ng8 {[%emt 0:00:20]} 12. O-O {[%emt 0:04:01]} Bh6 {[%emt 0:00:14]} 13. Bxh6 {[%emt 0:00:02]} Nxh6 {[%emt 0:00:03]} 14. Nd3 {[%emt 0:00:02]} Qe7 15. b4 {[%emt 0:01:10]} cxb4 {[%emt 0:01:04]} 16. Na4 {[%emt 0:00:02]} b6 {[%emt 0:05:01]} 17. Nxb4 {[%emt 0:01:39]} Qd8 {[%emt 0:00:15]} 18. Nc6 {[%emt 0:01:19]} Qc7 {[%emt 0:00:01]} 19. Qg5 {[%emt 0:00:04]} Ng8 {[%emt 0:00:04]} 20. f4 {[%emt 0:00:18]} Bb7 {[%emt 0:01:21]} 21. f5 {[%emt 0:04:11]} Nf8 {[%emt 0:02:19]} 22. fxg6 {[%emt 0:00:02]} Nxg6 {[%emt 0:00:01]} 23. Bxh5 {[%emt 0:00:30]} Rxh5 {[%emt 0:00:46]} 24. Qxh5 {[%emt 0:00:12]} Bxc6 {[%emt 0:00:00]} 25. dxc6 {[%emt 0:00:08]} Nf4 {[%emt 0:01:52]} 26. Qh7 {[%emt 0:00:56]} O-O-O {[%emt 0:00:42]} 27. Rab1 {[%emt 0:00:03]} Qxc6 {[%emt 0:01:45]} 28. Nxb6+ {[%emt 0:00:29]} Kb8 {[%emt 0:00:05]} 29. Qxf7 {[%emt 0:01:02]} Nh6 {[%emt 0:00:37]} 30. Nd5+ {[%emt 0:01:04]} Kc8 {[%emt 0:00:40]} 31. Ne7+ {[%emt 0:00:12]} Kd7 {[%emt 0:00:01]} 32. Nxc6+ {[%emt 0:00:19]} Nxf7 {[%emt 0:00:06]} 33. Nxd8 {[%emt 0:00:02]} Nxd8 {[%emt 0:00:02]} 34. Rb6 {[%emt 0:00:09]} Nde6 {[%emt 0:00:07]} 35. Rxa6 {[%emt 0:00:07]} Nc5 {[%emt 0:00:00]} 36. Ra7+ {[%emt 0:00:02]} Kc6 {[%emt 0:00:01]} 37. Rf7 {[%emt 0:00:16]} Ne2+ {[%emt 0:00:24]} 38. Kh1 {[%emt 0:00:18]} Nxe4 {[%emt 0:00:04]} 39. Re1 {[%emt 0:00:02]} N4c3 {[%emt 0:00:01]} 40. h4 {[%emt 0:00:12]} Ng3+ {[%emt 0:00:07]} 41. Kh2 {[%emt 0:00:00]} Nh5 {[%emt 0:00:16]} 42. g4 {[%emt 0:00:08]} Nf4 {[%emt 0:00:01]} 43. h5 {[%emt 0:00:03]} Kc5 {[%emt 0:00:17]} 44. Rxf4 {[%emt 0:00:06]} exf4 {[%emt 0:00:01]} 45. h6 {[%emt 0:00:01]} f3 {[%emt 0:00:06]} 46. h7 {[%emt 0:00:03]} f2 {[%emt 0:00:01]} 47. Rf1 {[%emt 0:00:04]} Ne4 {[%emt 0:00:07]} 48. h8=Q {[%emt 0:00:04]} 1-0

[Event "HUN-ch Rapid 2019"]
[Site "Ajka"]
[Date "2019.07.20"]
[Round "6.19"]
[White "Borhy, Marcell"]
[Black "Horvath, Tamas"]
[Result "1/2-1/2"]
[ECO "A40"]
[WhiteElo "2382"]
[BlackElo "2306"]
[Annotator "NA"]
[PlyCount "56"]
[EventDate "2019.07.18"]
[EventType "swiss"]
[EventCountry "HUN"]
[SourceTitle "playchess.com"]
[Source "ChessBase"]
[SourceQuality "1"]
[TimeControl "1200+5"]

1. d4 {[%emt 0:00:02]} Nf6 {[%emt 0:00:04]} 2. c4 {[%emt 0:00:02]} e6 {[%emt 0:00:06]} 3. g3 {[%emt 0:00:02]} c5 {[%emt 0:00:08]} 4. Nf3 {[%emt 0:00:03]} cxd4 {[%emt 0:00:07]} 5. Nxd4 {[%emt 0:00:03]} Bb4+ {[%emt 0:00:08]} 6. Bd2 {[%emt 0:00:03]} Qb6 {[%emt 0:00:04]} 7. Nb3 {[%emt 0:00:59]} Ne4 {[%emt 0:01:29]} 8. e3 {[%emt 0:00:33]} Nxd2 {[%emt 0:00:18]} 9. N1xd2 {[%emt 0:00:08]} O-O {[%emt 0:00:21]} 10. Bg2 {[%emt 0:00:10]} Be7 {[%emt 0:00:29]} 11. O-O {[%emt 0:00:14]} d6 {[%emt 0:00:05]} 12. Qc2 {[%emt 0:00:23]} Nd7 {[%emt 0:00:04]} 13. Rfd1 {[%emt 0:00:13]} Nf6 {[%emt 0:00:13]} 14. Rac1 {[%emt 0:00:03]} Bd7 {[%emt 0:00:11]} 15. Nd4 {[%emt 0:00:24]} a6 {[%emt 0:00:47]} 16. Qb3 {[%emt 0:01:19]} Qxb3 {[%emt 0:00:12]} 17. N2xb3 {[%emt 0:00:06]} Ra7 {[%emt 0:02:21]} 18. Na5 {[%emt 0:03:13]} e5 {[%emt 0:01:26]} 19. Ne2 {[%emt 0:01:03]} Rb8 {[%emt 0:01:17]} 20. b4 {[%emt 0:00:59]} Bg4 {[%emt 0:00:42]} 21. Kf1 {[%emt 0:00:51]} Bd7 {[%emt 0:00:26]} 22. Nc3 {[%emt 0:00:53]} b6 {[%emt 0:00:59]} 23. Nb3 {[%emt 0:01:15]} Rc7 {[%emt 0:00:13]} 24. Nd5 {[%emt 0:00:22]} Nxd5 {[%emt 0:00:03]} 25. cxd5 {[%emt 0:00:36]} Rbc8 {[%emt 0:00:22]} 26. Rxc7 {[%emt 0:01:25]} Rxc7 {[%emt 0:00:03]} 27. Rc1 {[%emt 0:00:01]} Rxc1+ {[%emt 0:00:47]} 28. Nxc1 {[%emt 0:00:01]} Kf8 {[%emt 0:00:30]} 1/2-1/2

[Event "HUN-ch Rapid 2019"]
[Site "Ajka"]
[Date "2019.07.20"]
[Round "6.20"]
[White "Medvegy, Zoltan"]
[Black "Margl, Roland"]
[Result "1/2-1/2"]
[ECO "A13"]
[WhiteElo "2539"]
[BlackElo "2264"]
[Annotator "ChessBase"]
[PlyCount "98"]
[EventDate "2019.07.18"]
[EventType "swiss"]
[EventCountry "HUN"]
[SourceTitle "playchess.com"]
[Source "ChessBase"]
[SourceQuality "1"]
[TimeControl "1200+5"]

1. c4 {[%emt 0:00:01]} e6 {[%emt 0:00:01]} 2. g3 {[%emt 0:00:10]} d5 {[%emt 0:00:01]} 3. Bg2 {[%emt 0:00:01]} Nf6 {[%emt 0:00:02]} 4. Nf3 {[%emt 0:00:01]} d4 {[%emt 0:00:01]} 5. O-O {[%emt 0:00:14]} Nc6 {[%emt 0:00:01]} 6. d3 {[%emt 0:00:43]} Bc5 {[%emt 0:00:02]} 7. e4 {[%emt 0:00:36]} dxe3 {[%emt 0:03:58]} 8. Bxe3 {[%emt 0:00:13]} Nd4 {[%emt 0:02:31]} 9. Nbd2 {[%emt 0:04:06]} O-O {[%emt 0:00:15]} 10. Rb1 {[%emt 0:00:42]} a5 {[%emt 0:00:25]} 11. Re1 {[%emt 0:00:55]} Nxf3+ {[%emt 0:04:33]} 12. Nxf3 {[%emt 0:00:20]} Bxe3 {[%emt 0:00:33]} 13. fxe3 {[%emt 0:00:28]} c5 {[%emt 0:00:18]} 14. d4 {[%emt 0:00:52]} Qc7 {[%emt 0:00:11]} 15. Qe2 {[%emt 0:00:15]} b6 {[%emt 0:01:08]} 16. e4 {[%emt 0:03:18]} cxd4 {[%emt 0:00:56]} 17. e5 {[%emt 0:00:02]} Nd7 {[%emt 0:00:06]} 18. Nxd4 {[%emt 0:00:27]} Bb7 {[%emt 0:00:02]} 19. Rbd1 {[%emt 0:02:48]} Bxg2 {[%emt 0:00:09]} 20. Kxg2 {[%emt 0:00:02]} Rad8 {[%emt 0:01:11]} 21. Nb5 {[%emt 0:00:44]} Qc5 {[%emt 0:00:38]} 22. b3 {[%emt 0:01:46]} a4 {[%emt 0:01:21]} 23. Rd6 {[%emt 0:01:01]} Nb8 {[%emt 0:00:55]} 24. Qe3 {[%emt 0:00:41]} axb3 {[%emt 0:00:45]} 25. Qxc5 {[%emt 0:00:26]} bxc5 {[%emt 0:00:01]} 26. axb3 {[%emt 0:00:01]} Rc8 {[%emt 0:00:36]} 27. Kf3 {[%emt 0:00:20]} Nc6 {[%emt 0:00:09]} 28. Ke4 {[%emt 0:00:01]} Rfd8 {[%emt 0:00:05]} 29. Ra1 {[%emt 0:00:47]} Kf8 {[%emt 0:00:40]} 30. Ra6 {[%emt 0:00:03]} Nb4 {[%emt 0:00:21]} 31. Ra7 {[%emt 0:00:04]} h6 {[%emt 0:00:25]} 32. Rxd8+ {[%emt 0:00:22]} Rxd8 {[%emt 0:00:02]} 33. Nd6 {[%emt 0:00:03]} f5+ {[%emt 0:00:07]} 34. Ke3 {[%emt 0:00:05]} Nc6 {[%emt 0:00:02]} 35. Nb7 {[%emt 0:00:03]} Rb8 {[%emt 0:00:11]} 36. Nxc5 {[%emt 0:00:02]} Rxb3+ {[%emt 0:00:05]} 37. Nxb3 {[%emt 0:00:01]} Nxa7 {[%emt 0:00:01]} 38. h4 {[%emt 0:00:18]} g5 {[%emt 0:00:01]} 39. Nd4 {[%emt 0:00:03]} Ke7 {[%emt 0:00:04]} 40. c5 {[%emt 0:00:07]} Kd7 {[%emt 0:00:03]} 41. hxg5 {[%emt 0:00:02]} hxg5 {[%emt 0:00:01]} 42. Nf3 {[%emt 0:00:01]} Kc6 {[%emt 0:00:20]} 43. Nxg5 {[%emt 0:00:01]} Kxc5 {[%emt 0:00:00]} 44. Kf4 {[%emt 0:00:17]} Kd5 {[%emt 0:00:03]} 45. Nh7 {[%emt 0:00:04]} Nc6 {[%emt 0:00:03]} 46. Nf6+ {[%emt 0:00:02]} Kd4 {[%emt 0:00:01]} 47. Nd7 {[%emt 0:00:04]} Kd5 {[%emt 0:00:00]} 48. Nb6+ {[%emt 0:00:07]} Kd4 {[%emt 0:00:01]} 49. Nd7 {[%emt 0:00:02]} Kd5 {Ke4+} 1/2-1/2

[Event "HUN-ch Rapid 2019"]
[Site "Ajka"]
[Date "2019.07.20"]
[Round "7.3"]
[White "Aczel, Gergely"]
[Black "Vertetics, Attila"]
[Result "1/2-1/2"]
[ECO "E46"]
[WhiteElo "2540"]
[BlackElo "2438"]
[Annotator "ChessBase"]
[PlyCount "89"]
[EventDate "2019.07.18"]
[EventType "swiss"]
[EventCountry "HUN"]
[SourceTitle "playchess.com"]
[Source "ChessBase"]
[SourceQuality "1"]
[TimeControl "1200+5"]

1. d4 {[%emt 0:00:01]} Nf6 {[%emt 0:00:03]} 2. c4 {[%emt 0:00:02]} e6 {[%emt 0:00:09]} 3. Nc3 {[%emt 0:00:01]} Bb4 {[%emt 0:00:03]} 4. e3 {[%emt 0:00:01]} O-O {[%emt 0:00:11]} 5. Bd2 {[%emt 0:00:02]} Re8 {[%emt 0:00:37]} 6. Bd3 {[%emt 0:00:15]} d5 {[%emt 0:00:14]} 7. Nf3 {[%emt 0:00:17]} Bf8 {[%emt 0:03:11]} 8. O-O {[%emt 0:00:06]} c5 {[%emt 0:01:21]} 9. cxd5 {[%emt 0:00:45]} exd5 {[%emt 0:00:39]} 10. dxc5 {[%emt 0:00:08]} Bxc5 {[%emt 0:00:09]} 11. h3 {[%emt 0:01:18]} Nc6 {[%emt 0:00:06]} 12. Rc1 {[%emt 0:00:50]} Qe7 {[%emt 0:00:54]} 13. Bb5 {[%emt 0:02:17]} Bd7 {[%emt 0:01:33]} 14. Ne2 {[%emt 0:01:27]} Bb6 {[%emt 0:00:58]} 15. Bc3 {[%emt 0:00:32]} Rad8 {[%emt 0:00:06]} 16. Ba4 {[%emt 0:04:34]} Ne4 {[%emt 0:00:20]} 17. Bd4 {[%emt 0:00:26]} Ng5 {[%emt 0:03:13]} 18. Nxg5 {[%emt 0:00:16]} Qxg5 {[%emt 0:00:04]} 19. Bxb6 {[%emt 0:00:25]} axb6 {[%emt 0:00:16]} 20. Kh1 {[%emt 0:01:03]} Qh4 {[%emt 0:00:16]} 21. Kh2 {[%emt 0:00:57]} Qf6 {[%emt 0:02:43]} 22. Rc3 {[%emt 0:00:36]} d4 {[%emt 0:01:50]} 23. Nxd4 {[%emt 0:01:12]} Nxd4 {[%emt 0:00:01]} 24. exd4 {[%emt 0:00:02]} Bxa4 {[%emt 0:00:02]} 25. Qxa4 {[%emt 0:00:02]} Qxd4 {[%emt 0:00:03]} 26. Qb3 {[%emt 0:00:53]} Rd7 {[%emt 0:00:15]} 27. Rf3 {[%emt 0:00:11]} g6 {[%emt 0:00:29]} 28. Rc1 {[%emt 0:00:18]} Kg7 {[%emt 0:00:04]} 29. Rc4 {[%emt 0:00:27]} Qe5+ {[%emt 0:00:07]} 30. g3 {[%emt 0:00:03]} Ree7 {[%emt 0:00:17]} 31. Rcf4 {[%emt 0:01:35]} b5 {[%emt 0:00:28]} 32. h4 {[%emt 0:00:03]} h5 {[%emt 0:00:06]} 33. a3 {[%emt 0:00:03]} Qd5 {[%emt 0:00:29]} 34. Qxd5 {[%emt 0:00:33]} Rxd5 {[%emt 0:00:01]} 35. Rf6 {[%emt 0:00:37]} Rd2 {[%emt 0:00:21]} 36. b4 {[%emt 0:00:08]} Red7 {[%emt 0:00:10]} 37. Rb6 {[%emt 0:00:07]} R2d5 {[%emt 0:00:23]} 38. Kg2 {[%emt 0:00:02]} Re5 {[%emt 0:00:05]} 39. Rc3 {[%emt 0:00:12]} Red5 {[%emt 0:00:40]} 40. Rf3 {[%emt 0:00:17]} Re5 {[%emt 0:00:04]} 41. Rc3 {[%emt 0:00:04]} Red5 {[%emt 0:00:01]} 42. Rc5 {[%emt 0:00:01]} Rd3 {[%emt 0:00:13]} 43. Rcxb5 {[%emt 0:00:06]} Rxa3 {[%emt 0:00:03]} 44. Re5 {[%emt 0:00:18]} Rc3 {[%emt 0:00:02]} 45. Re4 1/2-1/2

[Event "HUN-ch Rapid 2019"]
[Site "Ajka"]
[Date "2019.07.20"]
[Round "7.4"]
[White "Mihok, Oliver"]
[Black "Ruck, Robert"]
[Result "1-0"]
[ECO "B18"]
[WhiteElo "2550"]
[BlackElo "2524"]
[Annotator "ChessBase"]
[PlyCount "83"]
[EventDate "2019.07.18"]
[EventType "swiss"]
[EventCountry "HUN"]
[SourceTitle "playchess.com"]
[Source "ChessBase"]
[SourceQuality "1"]
[TimeControl "1200+5"]

1. e4 {[%emt 0:00:02]} c6 {[%emt 0:00:06]} 2. d4 {[%emt 0:00:02]} d5 {[%emt 0:00:01]} 3. Nd2 {[%emt 0:00:01]} dxe4 {[%emt 0:00:03]} 4. Nxe4 {[%emt 0:00:01]} Bf5 {[%emt 0:00:02]} 5. Ng3 {[%emt 0:00:01]} Bg6 {[%emt 0:00:01]} 6. Bc4 {[%emt 0:00:01]} e6 {[%emt 0:00:07]} 7. N1e2 {[%emt 0:00:02]} Bd6 {[%emt 0:00:38]} 8. h4 {[%emt 0:00:01]} h6 {[%emt 0:00:05]} 9. Nf4 {[%emt 0:00:02]} Bxf4 {[%emt 0:00:14]} 10. Bxf4 {[%emt 0:00:01]} Nf6 {[%emt 0:00:02]} 11. Qe2 {[%emt 0:00:02]} Nbd7 {[%emt 0:01:12]} 12. h5 {[%emt 0:00:10]} Bh7 {[%emt 0:00:03]} 13. O-O-O {[%emt 0:00:17]} O-O {[%emt 0:01:16]} 14. Bd3 {[%emt 0:00:11]} Bxd3 {[%emt 0:00:10]} 15. Rxd3 {[%emt 0:00:04]} Qa5 {[%emt 0:00:04]} 16. Kb1 {[%emt 0:00:21]} c5 {[%emt 0:00:20]} 17. Ne4 {[%emt 0:02:51]} cxd4 {[%emt 0:02:49]} 18. Nxf6+ {[%emt 0:00:34]} Nxf6 {[%emt 0:00:09]} 19. Be5 {[%emt 0:00:24]} Rfd8 {[%emt 0:01:50]} 20. Bxd4 {[%emt 0:01:26]} Rd5 {[%emt 0:00:48]} 21. Bxf6 {[%emt 0:01:16]} gxf6 {[%emt 0:00:31]} 22. Qg4+ {[%emt 0:01:34]} Kf8 {[%emt 0:04:45]} 23. Rxd5 {[%emt 0:03:23]} Qxd5 {[%emt 0:00:06]} 24. Rd1 {[%emt 0:00:03]} Qe5 {[%emt 0:03:38]} 25. a3 {[%emt 0:00:58]} Rc8 {[%emt 0:00:39]} 26. Qb4+ {[%emt 0:00:15]} Kg7 {[%emt 0:00:19]} 27. Rd7 {[%emt 0:01:28]} a5 {[%emt 0:01:12]} 28. Qxb7 {[%emt 0:00:40]} Rf8 {[%emt 0:00:05]} 29. Qf3 {[%emt 0:00:57]} Rb8 {[%emt 0:00:33]} 30. Qg4+ {[%emt 0:00:55]} Kf8 {[%emt 0:00:10]} 31. Qd4 {[%emt 0:00:04]} Qb5 {[%emt 0:00:31]} 32. Rc7 {[%emt 0:01:34]} Kg7 {[%emt 0:00:04]} 33. Rc5 {[%emt 0:00:30]} Qf1+ {[%emt 0:00:05]} 34. Ka2 {[%emt 0:00:01]} Qxg2 {[%emt 0:00:06]} 35. Rxa5 {[%emt 0:00:37]} e5 {[%emt 0:00:01]} 36. Rxe5 {[%emt 0:00:35]} fxe5 {[%emt 0:00:09]} 37. Qxe5+ {[%emt 0:00:02]} Kh7 {[%emt 0:00:05]} 38. Qxb8 {[%emt 0:00:03]} Qxf2 {[%emt 0:00:01]} 39. Qc7 {[%emt 0:00:15]} Kg8 {[%emt 0:00:07]} 40. a4 {[%emt 0:00:09]} f5 {[%emt 0:00:02]} 41. a5 {[%emt 0:00:10]} Qe2 {[%emt 0:00:02]} 42. Qc8+ {[%emt 0:00:04]} 1-0

[Event "HUN-ch Rapid 2019"]
[Site "Ajka"]
[Date "2019.07.20"]
[Round "7.5"]
[White "Balog, Imre"]
[Black "Hoang, Thanh Trang"]
[Result "1-0"]
[ECO "A10"]
[WhiteElo "2566"]
[BlackElo "2414"]
[Annotator "ChessBase"]
[PlyCount "101"]
[EventDate "2019.07.18"]
[EventType "swiss"]
[EventCountry "HUN"]
[SourceTitle "playchess.com"]
[Source "ChessBase"]
[SourceQuality "1"]
[TimeControl "1200+5"]

1. c4 {[%emt 0:00:05]} f5 {[%emt 0:00:05]} 2. g3 {[%emt 0:00:01]} Nf6 {[%emt 0:00:05]} 3. Bg2 {[%emt 0:00:01]} g6 {[%emt 0:00:09]} 4. Nc3 {[%emt 0:00:02]} Bg7 {[%emt 0:00:03]} 5. d3 {[%emt 0:00:01]} d6 {[%emt 0:00:23]} 6. e4 {[%emt 0:00:02]} Nc6 {[%emt 0:00:09]} 7. Nge2 {[%emt 0:00:02]} e5 {[%emt 0:00:13]} 8. O-O {[%emt 0:00:09]} O-O {[%emt 0:00:08]} 9. h3 {[%emt 0:00:04]} Be6 {[%emt 0:00:24]} 10. Nd5 {[%emt 0:00:29]} Qd7 {[%emt 0:00:16]} 11. Kh2 {[%emt 0:00:02]} Rf7 {[%emt 0:01:00]} 12. Be3 {[%emt 0:00:10]} Raf8 {[%emt 0:00:49]} 13. Qd2 {[%emt 0:00:03]} Nh5 {[%emt 0:00:50]} 14. exf5 {[%emt 0:00:12]} gxf5 {[%emt 0:00:51]} 15. f4 {[%emt 0:00:05]} Kh8 {[%emt 0:00:29]} 16. Rae1 {[%emt 0:02:11]} a6 {[%emt 0:00:14]} 17. Qd1 {[%emt 0:00:31]} Nf6 {[%emt 0:00:57]} 18. d4 {[%emt 0:00:33]} Ne4 {[%emt 0:01:03]} 19. dxe5 {[%emt 0:01:48]} dxe5 {[%emt 0:00:11]} 20. fxe5 {[%emt 0:00:19]} Nxe5 {[%emt 0:00:20]} 21. b3 {[%emt 0:00:06]} Bxd5 {[%emt 0:01:35]} 22. cxd5 {[%emt 0:00:12]} Ng6 {[%emt 0:00:27]} 23. Bd4 {[%emt 0:00:12]} Rd8 {[%emt 0:01:15]} 24. Bxg7+ {[%emt 0:01:20]} Rxg7 {[%emt 0:00:12]} 25. Bxe4 {[%emt 0:00:01]} fxe4 {[%emt 0:00:03]} 26. Nc3 {[%emt 0:00:04]} Ne7 {[%emt 0:03:14]} 27. Rxe4 {[%emt 0:00:02]} Qd6 {[%emt 0:00:57]} 28. Re3 {[%emt 0:02:54]} c6 {[%emt 0:03:49]} 29. dxc6 {[%emt 0:01:01]} Nxc6 {[%emt 0:00:47]} 30. Re8+ {[%emt 0:01:00]} Rg8 {[%emt 0:00:01]} 31. Rxg8+ {[%emt 0:00:01]} Kxg8 {[%emt 0:00:01]} 32. Qg4+ {[%emt 0:00:02]} Qg6 {[%emt 0:00:18]} 33. Qc4+ {[%emt 0:00:01]} Kh8 {[%emt 0:00:09]} 34. Rf2 {[%emt 0:00:26]} Qg7 {[%emt 0:00:16]} 35. Ne4 {[%emt 0:00:20]} Ne5 {[%emt 0:00:10]} 36. Qe6 {[%emt 0:00:15]} Ng6 {[%emt 0:00:21]} 37. h4 {[%emt 0:01:42]} Qe5 {[%emt 0:00:07]} 38. Ng5 {[%emt 0:00:26]} Qxe6 {[%emt 0:00:08]} 39. Nxe6 {[%emt 0:00:01]} Rd6 {[%emt 0:00:06]} 40. Nc5 {[%emt 0:00:11]} b5 {[%emt 0:00:09]} 41. Kh3 {[%emt 0:00:14]} Ne5 {[%emt 0:00:04]} 42. Rf5 {[%emt 0:00:10]} Nd3 {[%emt 0:00:08]} 43. Ne4 {[%emt 0:00:06]} Rg6 {[%emt 0:00:11]} 44. h5 {[%emt 0:00:14]} Rg8 {[%emt 0:00:00]} 45. g4 {[%emt 0:00:06]} Nb4 {[%emt 0:00:04]} 46. h6 {[%emt 0:00:07]} Nxa2 {[%emt 0:00:05]} 47. Rf7 {[%emt 0:00:01]} Rg6 {[%emt 0:00:11]} 48. g5 {[%emt 0:00:01]} Kg8 {[%emt 0:00:15]} 49. Ra7 {[%emt 0:00:01]} Kf8 {[%emt 0:00:12]} 50. Rxh7 {[%emt 0:00:06]} Nb4 {[%emt 0:00:03]} 51. Rd7 {[%emt 0:00:09]} 1-0

[Event "HUN-ch Rapid 2019"]
[Site "Ajka"]
[Date "2019.07.20"]
[Round "7.6"]
[White "Papp, Gabor"]
[Black "Jakab, Attila"]
[Result "1-0"]
[ECO "C10"]
[WhiteElo "2587"]
[BlackElo "2377"]
[Annotator "ChessBase"]
[PlyCount "93"]
[EventDate "2019.07.18"]
[EventType "swiss"]
[EventCountry "HUN"]
[SourceTitle "playchess.com"]
[Source "ChessBase"]
[SourceQuality "1"]
[TimeControl "1200+5"]

1. e4 {[%emt 0:00:02]} e6 {[%emt 0:00:03]} 2. d4 {[%emt 0:00:02]} d5 {[%emt 0:00:03]} 3. Nd2 {[%emt 0:00:01]} dxe4 {[%emt 0:00:02]} 4. Nxe4 {[%emt 0:00:02]} Nd7 {[%emt 0:00:02]} 5. Nf3 {[%emt 0:00:03]} Ngf6 {[%emt 0:00:02]} 6. Nxf6+ {[%emt 0:00:02]} Nxf6 {[%emt 0:00:01]} 7. c3 {[%emt 0:00:06]} Be7 {[%emt 0:00:03]} 8. Ne5 {[%emt 0:00:42]} O-O {[%emt 0:00:19]} 9. Be3 {[%emt 0:00:21]} Nd7 {[%emt 0:00:18]} 10. Be2 {[%emt 0:00:20]} Nxe5 {[%emt 0:07:59]} 11. dxe5 {[%emt 0:00:02]} b6 {[%emt 0:00:01]} 12. Bf3 {[%emt 0:00:33]} Rb8 {[%emt 0:00:02]} 13. Qa4 {[%emt 0:00:51]} Bb7 {[%emt 0:00:51]} 14. Bxb7 {[%emt 0:00:28]} Rxb7 {[%emt 0:00:01]} 15. Rd1 {[%emt 0:00:03]} Qe8 {[%emt 0:00:23]} 16. Qd7 {[%emt 0:02:08]} h6 {[%emt 0:00:56]} 17. Ke2 {[%emt 0:00:15]} Qxd7 {[%emt 0:00:17]} 18. Rxd7 {[%emt 0:00:02]} Rd8 {[%emt 0:00:09]} 19. Rxd8+ {[%emt 0:02:03]} Bxd8 {[%emt 0:00:00]} 20. Rd1 {[%emt 0:00:02]} Be7 {[%emt 0:00:12]} 21. g4 {[%emt 0:00:17]} Kf8 {[%emt 0:00:07]} 22. f4 {[%emt 0:00:02]} Ke8 {[%emt 0:00:09]} 23. Kf3 {[%emt 0:01:00]} c6 {[%emt 0:00:03]} 24. Ke4 {[%emt 0:00:01]} Rd7 {[%emt 0:00:38]} 25. Rf1 {[%emt 0:00:11]} Bd8 {[%emt 0:02:26]} 26. a4 {[%emt 0:00:36]} b5 {[%emt 0:01:01]} 27. axb5 {[%emt 0:00:42]} cxb5 {[%emt 0:00:01]} 28. f5 {[%emt 0:00:19]} Bg5 {[%emt 0:00:49]} 29. Bd4 {[%emt 0:00:07]} a5 {[%emt 0:00:10]} 30. f6 {[%emt 0:01:29]} gxf6 {[%emt 0:00:35]} 31. exf6 {[%emt 0:00:02]} a4 {[%emt 0:00:20]} 32. Rh1 {[%emt 0:01:05]} Bh4 {[%emt 0:00:22]} 33. Ra1 {[%emt 0:00:11]} Rc7 {[%emt 0:01:13]} 34. b3 {[%emt 0:00:18]} axb3 {[%emt 0:00:04]} 35. Rb1 {[%emt 0:00:01]} Rd7 {[%emt 0:00:34]} 36. Rxb3 {[%emt 0:00:07]} Rd5 {[%emt 0:00:01]} 37. Ra3 {[%emt 0:00:20]} Bg5 {[%emt 0:00:44]} 38. Ra6 {[%emt 0:01:01]} Bc1 {[%emt 0:01:04]} 39. h4 {[%emt 0:01:19]} Bd2 {[%emt 0:00:04]} 40. Rb6 {[%emt 0:00:39]} Be1 {[%emt 0:00:02]} 41. h5 {[%emt 0:00:35]} Bg3 {[%emt 0:00:48]} 42. Rb7 {[%emt 0:00:22]} Bh2 {[%emt 0:00:02]} 43. Re7+ {[%emt 0:00:39]} Kf8 {[%emt 0:00:01]} 44. Be3 {[%emt 0:00:08]} Be5 {[%emt 0:00:14]} 45. Bxh6+ Kg8 46. Re8+ {[%emt 0:00:22]} Kh7 {[%emt 0:00:02]} 47. Bg7 {[%emt 0:00:01]} 1-0